Cogmind - Beta 14 @@@ ROGUE MODE // 2025.04.01 @ 08:34:44 Player: golanco Result: Destroyed by G-47 Trooper with Particle Gun Performance ------------- Evolutions (2) 1000 Regions Visited (4) 800 Robots Destroyed (131) 655 Value Destroyed (3338) 3338 Prototype IDs (3) 60 Alien Tech Used (0) 0 Bonus (259) 259 TOTAL SCORE: 6112 Bonus ------- High Alert Combat Kills 249 Follower Combat Kills 42 Friendly Fire -32 Cogmind --------- Core Integrity 0/550 Matter 229/300 Energy 167/265 System Corruption 1% Temperature Critical (527) Movement Treading (400) Ox3 Location -8/Materials Parts ------- > --- POWER (1) -------- Improved Ion Engine > --- PROPULSION (2) --- Medium Treads > --- UTILITY (5) ------ Huge Storage Unit Improved Sensor Array Improved Signal Interpreter Weapon Cycler > --- WEAPON (3) ------- Small Laser Heavy Particle Cannon Mini Grenade Launcher > --- INVENTORY (25) --- Light Nuclear Core Light Nuclear Core Improved Treads Armored Treads Armored Treads Huge Storage Unit Improved Signal Interpreter Improved Signal Interpreter Improved Light Armor Plating Improved Light Armor Plating Shield Generator Shield Generator Shield Generator Hacking Suite Hacking Suite Authchip [Device] Authchip [Device] Recalibrator Plasma Cutter Great Maul Peak State ------------ > --- POWER ------------ Improved Ion Engine > --- PROPULSION ------- Medium Treads Medium Treads > --- UTILITY ---------- Huge Storage Unit Improved Signal Interpreter Weapon Cycler Weapon Cycler Improved Light Armor Plating > --- WEAPON ----------- Heavy Particle Cannon Mini Grenade Launcher > --- INVENTORY -------- Light Nuclear Core Light Nuclear Core Improved Treads Armored Treads Improved Heat Sink Improved Heat Sink Huge Storage Unit Improved Sensor Array Improved Signal Interpreter Improved Signal Interpreter Improved Light Armor Plating Shield Generator Shield Generator Shield Generator Hacking Suite Hacking Suite Authchip [Device] Authchip [Device] Recalibrator Small Laser Plasma Cutter Great Maul [Rating: 36] Favorites ----------- Power Ion Engine Engine Ion Engine Power Core Light Nuclear Core Propulsion Light Treads Treads Light Treads Flight Unit Improved Flight Unit Utility Huge Storage Unit Device Shield Generator Storage Huge Storage Unit Processor Improved Signal Interpreter Protection Medium Armor Plating Weapon Light Cannon Energy Gun Particle Gun Energy Cannon Heavy Particle Cannon Ballistic Gun Light Assault Rifle Ballistic Cannon Light Cannon Launcher Mini Grenade Launcher Impact Weapon Great Maul Build | -11 -10 -9 -9 -8 ------- Run | Yrd Mat Mat Min Mat Slots Evolved 4 | . . 2 . 2 Power . | . . . . . Propulsion . | . . . . . Utility 3 | . . 2 . 1 Weapon 1 | . . . . 1 Parts Attached 100 | 6 8 31 . 55 Power 8 | 1 1 2 . 4 Engine 6 | 1 1 2 . 2 Core 2 | . . . . 2 Reactor . | . . . . . Propulsion 22 | 2 2 11 . 7 Treads 21 | 2 2 10 . 7 Leg . | . . . . . Wheel . | . . . . . Hover . | . . . . . Flight 1 | . . 1 . . Utility 31 | 1 2 8 . 20 Device 14 | . 1 1 . 12 Storage 7 | 1 1 3 . 2 Processor 2 | . . . . 2 Hackware . | . . . . . Protection 8 | . . 4 . 4 Artifact . | . . . . . Weapon 39 | 2 3 10 . 24 Energy Gun 4 | . . . . 4 Energy Cannon 2 | . . . . 2 Ballistic Gun 15 | 2 1 4 . 8 Ballistic Cannon 12 | . 2 6 . 4 Launcher 5 | . . . . 5 Special Weapon . | . . . . . Impact Weapon 1 | . . . . 1 Slashing Weapon . | . . . . . Piercing Weapon . | . . . . . Special Melee Weapon . | . . . . . Unidentified Prototypes 2 | . . 2 . . Parts Lost 30 | . 1 4 . 25 Power 4 | . . 1 . 3 Propulsion 5 | . . 1 . 4 Utility 10 | . . 1 . 9 Weapon 11 | . 1 1 . 9 Highest Loss Streak 11 | . 1 1 . 11 To Critical Strikes . | . . . . . Average Slot Usage (%) 95 | . 99 96 100 91 Engine 10 | . 14 11 11 6 Treads 20 | . 28 20 22 17 Device 12 | . 13 11 11 13 Storage 18 | . 14 22 22 16 Processor 2 | . . . . 8 Protection 5 | . . 9 11 2 Energy Gun 1 | . . . . 4 Ballistic Gun 10 | . 24 4 . 10 Ballistic Cannon 10 | . 3 17 22 6 Peak Build Rating 36 | 6 9 17 17 36 Average Rating 17 | 5 7 15 17 28 On Entrance 9 | . 6 9 17 17 Naked Turns . | . . . . . Heaviest Build 112 | 13 92 107 107 112 Greatest Support 56 | 40 40 40 40 56 Greatest Overweight (x) 34 | . 2 34 2 5 Average Overweight (x) 1 | . 1 2 2 1 Largest Inventory Capacity 25 | 8 25 25 25 25 Average Capacity 24 | 7 23 25 25 25 Most Carried 25 | 4 20 25 24 25 Average Carried 21 | 2 12 23 24 23 Final Capacity 25 | 8 25 25 25 25 Final Carried 24 | 4 20 24 24 20 Class Distribution -------------------- 70% | Mutant 18% | Skirmisher 6% | Scavenger-Mutant 3% | Gunner Dominant Class ---------------- Mutant | -10/Materials Mutant | -9/Materials Mutant | -9/Mines Skirmisher | -8/Materials Resources | -11 -10 -9 -9 -8 ----------- Run | Yrd Mat Mat Min Mat Matter Collected 3676 | 196 604 1104 35 1737 Remotely . | . . . . . Salvage Created 3879 | 25 739 924 . 2191 Parts 250 | 2 59 62 . 127 Haulers Intercepted 13 | . 2 5 . 6 Recyclers Shooed 3 | . . 2 . 1 Parts Field Recycled . | . . . . . Retrieved Matter . | . . . . . Parts Self-Destructed . | . . . . . Prevented . | . . . . . Kills | -11 -10 -9 -9 -8 ------- Run | Yrd Mat Mat Min Mat Combat Hostiles Destroyed 92 | . 19 28 . 45 Guns 27 | . 16 3 . 8 Cannons 50 | . 3 25 . 22 AOE 15 | . . . . 15 Classes Destroyed 12 | 1 6 3 . 2 Worker 8 | 1 2 . . 5 Builder 6 | . 1 1 . 4 Hauler 13 | . 2 5 . 6 Recycler 4 | . . 1 . 3 Operator 5 | . 2 3 . . Watcher 12 | . 3 4 . 5 Swarmer 21 | . 9 9 . 3 Grunt 50 | . 10 10 . 30 Brawler 2 | . . 1 . 1 Duelist 2 | . . . . 2 Sentry 16 | . . 8 . 8 Heavy 1 | . . . . 1 Best Kill Streak 23 | 1 4 4 . 23 Combat Bots Only 8 | . 3 4 . 8 Max Kills in Single Turn 2 | 1 2 1 . 2 Gunslinging . | . . . . . Exploded 2 | . . . . 2 Melee . | . . . . . Uniques/NPCs Destroyed . | . . . . . Combat | -11 -10 -9 -9 -8 -------- Run | Yrd Mat Mat Min Mat Hostile Shots Fired 598 | . 104 221 . 273 Missed 185 | . 27 69 . 89 Damage Taken 5383 | . 799 1442 . 3142 Core 805 | . 104 145 . 556 Absorbed by Shields 705 | . . 430 . 275 Regen/Repaired (Parts) 214 | . 131 . . 83 Core Remaining (%) 73 | 100 58 . 63 . Volleys Fired 418 | 2 73 162 . 181 Largest 3 | 2 2 2 . 3 Hottest 198 | 40 70 70 . 198 Shots Fired 850 | 4 145 304 . 397 Gun 366 | 4 137 46 . 179 Cannon 453 | . 8 258 . 187 Launcher 31 | . . . . 31 Special . | . . . . . Kinetic 759 | 4 145 304 . 306 Thermal 60 | . . . . 60 Explosive 31 | . . . . 31 Electromagnetic . | . . . . . Robot Hit Streak 18 | 2 10 13 . 18 Robot Miss Streak 7 | 1 4 7 . 5 Penetration Max . | . . . . . Secondary Targets 5 | . 4 . . 1 Max Gunslinging Chain 1 | . 1 . . 1 Shots Hit Robots 500 | 2 88 173 . 237 Core Hits 240 | 2 41 52 . 145 Critical Kills 1 | . . . . 1 Critical Parts Destroyed 1 | 1 . . . . Critical Strikes 16 | 1 . 11 . 4 Destroy 2 | 1 . . . 1 Blast 14 | . . 11 . 3 Melee Attacks 8 | . . . . 8 Impact 8 | . . . . 8 Slashing . | . . . . . Piercing . | . . . . . Sneak Attacks . | . . . . . Combat Hostiles . | . . . . . Follow-up Attacks . | . . . . . Damage Inflicted 9528 | 26 1006 3062 . 5434 Guns 2479 | 26 922 231 . 1300 Cannons 4978 | . 84 2572 . 2322 Explosions 2053 | . . 259 . 1794 Melee . | . . . . . Ramming 18 | . . . . 18 Kinetic 6687 | 26 1006 2803 . 2852 Thermal 1034 | . . 179 . 855 Explosive 1789 | . . 80 . 1709 Electromagnetic . | . . . . . Impact . | . . . . . Slashing . | . . . . . Piercing . | . . . . . Highest Corruption 2 | . 2 . . 1 Average Corruption 1 | . 1 . . 1 Corruption Purged . | . . . . . Corruption Blocked . | . . . . . Effects 13 | . 1 . . 12 Message Errors 5 | . 1 . . 4 Matter Fused 3 | . . . . 3 Heat Flow Errors 2 | . . . . 2 Energy Discharges 1 | . . . . 1 Data Loss (minor) 1 | . . . . 1 Data Loss (major) 1 | . . . . 1 Overload Shots . | . . . . . Overflow Damage 253 | . . 130 . 123 Projectiles 75 | . . 52 . 23 Explosions 178 | . . 78 . 100 Melee . | . . . . . Knockbacks 38 | . 1 17 . 20 Impact . | . . . . . Kinetic 33 | . 1 16 . 16 Secondary 5 | . . 1 . 4 Self-Inflicted Damage 195 | . . 75 . 120 Shots 5 | . . 1 . 4 Rammed 2 | . . . . 2 Targets Rammed 2 | . . . . 2 Kicked . | . . . . . Crushed . | . . . . . Highest Temperature 509 | . 42 237 . 509 Average Temperature 57 | . 12 50 . 67 Received Heat Transfer 2042 | . 183 522 . 1337 Effects 7 | . . . . 7 Shutdowns 1 | . . . . 1 Energy Bleed 3 | . . . . 3 Damage (minor) 2 | . . . . 2 Damage (core) 1 | . . . . 1 Siege Activations . | . . . . . Robots Corrupted . | . . . . . Combat Hostiles . | . . . . . Parts Fried . | . . . . . Impact Corruptions . | . . . . . Robots Melted . | . . . . . Combat Hostiles . | . . . . . Parts Melted 2 | . . . . 2 Heat Transferred 1398 | . . 100 . 1298 Parts Sabotaged . | . . . . . Parts Stolen . | . . . . . Parts Stripped . | . . . . . Power Chain Reactions . | . . . . . Alert | -11 -10 -9 -9 -8 ------- Run | Yrd Mat Mat Min Mat Peak Influence 844 | 5 187 458 177 844 Initial 177 | . 3 40 177 68 Average 190 | . 62 249 177 190 Maximum Alert Level 3 | . . 2 . 3 Low Security (%) 56 | 100 100 36 100 55 Level 1 29 | . . 41 . 31 Level 2 11 | . . 22 . 4 Level 3 2 | . . . . 7 Level 4 . | . . . . . Level 5 . | . . . . . High Security . | . . . . . Max Security . | . . . . . Squads Dispatched 14 | . 4 2 . 8 Investigation 7 | . 2 . . 5 Extermination . | . . . . . Reinforcement 6 | . 2 2 . 2 Assault . | . . . . . Garrison 1 | . . . . 1 Intercept . | . . . . . Searches Triggered . | . . . . . Construction Impeded . | . . . . . Haulers Reinforced . | . . . . . Active Scanning Responses . | . . . . . Cargo Convoy Interrupts . | . . . . . Stealth | -11 -10 -9 -9 -8 --------- Run | Yrd Mat Mat Min Mat Distress Signals 9 | . 1 3 . 5 Communications Jammed . | . . . . . Distress Signals . | . . . . . Times Spotted 153 | . 27 63 . 63 Peak Tracking Total 8 | . 4 5 . 8 Tactical Retreats 6 | . 1 3 . 2 Traps | -11 -10 -9 -9 -8 ------- Run | Yrd Mat Mat Min Mat Traps Triggered 7 | . 6 . . 1 Indirectly . | . . . . . Trap Hack Attempts . | . . . . . Triggered . | . . . . . Disarmed . | . . . . . Reprogrammed . | . . . . . Reused . | . . . . . Traps Extracted . | . . . . . Installed . | . . . . . Triggered . | . . . . . Machines | -11 -10 -9 -9 -8 ---------- Run | Yrd Mat Mat Min Mat Machines Disabled 8 | . . 6 . 2 Max in Single Turn 2 | . . 2 . 1 Garrison Access 1 | . . . . 1 Machines Repaired . | . . . . . Machines Dismantled . | . . . . . Machines Sabotaged . | . . . . . Overloaded Fab Kills . | . . . . . Hacking | -11 -10 -9 -9 -8 --------- Run | Yrd Mat Mat Min Mat Machines Accessed 21 | . 6 2 . 13 Terminals 12 | . 3 1 . 8 Fabricators . | . . . . . Repair Stations 2 | . 1 . . 1 Recycling Units 3 | . 2 . . 1 Scanalyzers 3 | . . 1 . 2 Garrison Access 1 | . . . . 1 Total Hacks 52 | . 16 5 . 31 Successful 20 | . 10 2 . 8 Failed 32 | . 6 3 . 23 Catastrophic 8 | . 2 . . 6 Database Lockouts . | . . . . . Manual 15 | . 1 3 . 11 Terminals 32 | . 8 3 . 21 Fabricators . | . . . . . Repair Stations 6 | . 4 . . 2 Recycling Units 6 | . 4 . . 2 Scanalyzers 7 | . . 2 . 5 Garrison Access 1 | . . . . 1 Terminal Hacks 7 | . 5 . . 2 Level Access Points 1 | . . . . 1 Branch Access Points 2 | . 1 . . 1 Dispatch Records 1 | . 1 . . . Maintenance Status 1 | . 1 . . . Hauler Manifests 1 | . 1 . . . Zone Layout 1 | . 1 . . . Fabricator Hacks . | . . . . . Repair Station Hacks 5 | . 3 . . 2 Scan Component 3 | . 2 . . 1 Repair 2 | . 1 . . 1 Recycling Unit Hacks 3 | . 2 . . 1 Retrieve Components 3 | . 2 . . 1 Scanalyzer 4 | . . 2 . 2 Insert Component 2 | . . 1 . 1 Analyze 2 | . . 1 . 1 Garrison Access Hacks 1 | . . . . 1 Seal Access 1 | . . . . 1 Unauthorized Hacks . | . . . . . Terminals . | . . . . . Fabricators . | . . . . . Repair Stations . | . . . . . Recycling Units . | . . . . . Scanalyzers . | . . . . . Garrison Access . | . . . . . Data Cores Recovered . | . . . . . Used . | . . . . . Hacking Detections 13 | . 4 1 . 8 Full Trace Events 6 | . 1 . . 5 Feedback Events 1 | . . . . 1 Corruption 1 | . . . . 1 Feedback Blocked . | . . . . . Robot Schematics Acquired . | . . . . . Robots Built . | . . . . . Authchips . | . . . . . Time . | . . . . . Total Robot Build Rating . | . . . . . Part Schematics Acquired 2 | . . 1 . 1 Parts Built . | . . . . . Authchips . | . . . . . Time . | . . . . . Total Part Build Rating . | . . . . . Parts Repaired 2 | . 1 . . 1 Time 52 | . 26 . . 26 Parts Recycled . | . . . . . Recycled Matter . | . . . . . Retrieved Matter . | . . . . . Retrieved Components 19 | . 9 . . 10 Parts Scanalyzed 2 | . . 1 . 1 Part Schematics Acquired 2 | . . 1 . 1 Parts Damaged . | . . . . . Bothacking | -11 -10 -9 -9 -8 ------------ Run | Yrd Mat Mat Min Mat Used RIF Installer . | . . . . . Robots Hacked . | . . . . . Non-combat . | . . . . . Combat . | . . . . . Robot Hacks Applied . | . . . . . Relay Couplers Released . | . . . . . Fabnet Peak Effective % . | . . . . . Robots Rewired . | . . . . . Allies Hacked . | . . . . . Hacks Repelled . | . . . . . Allies | -11 -10 -9 -9 -8 -------- Run | Yrd Mat Mat Min Mat Total Allies 3 | . . . 3 . Largest Group 3 | . . . 3 3 Highest-Rated Group 40 | . . . 40 40 Highest-Rated Ally 16 | . . . 16 16 Total Orders . | . . . . . Ally Attacks 13 | . . . . 13 Total Damage 172 | . . . . 172 Kills 2 | . . . . 2 Allies Corrupted . | . . . . . Allies Melted . | . . . . . Intel | -11 -10 -9 -9 -8 ------- Run | Yrd Mat Mat Min Mat Robot Analysis Total . | . . . . . Derelict Logs Recovered . | . . . . . Drone Launches . | . . . . . Drone Recoveries . | . . . . . Exploration | -11 -10 -9 -9 -8 ------------- Run | Yrd Mat Mat Min Mat Turns Passed 12769 | 109 2545 5814 149 4152 Spaces Moved 3587 | 59 739 1440 35 1314 Core 4 | 3 . 1 . . Treads 3583 | 56 739 1439 35 1314 Legs . | . . . . . Wheels . | . . . . . Hover . | . . . . . Flight . | . . . . . Fastest Speed 50 | 50 160 320 320 240 Average Speed 311 | 154 306 364 320 262 Slowest Speed 1750 | 160 320 1750 320 560 Overloaded Moves . | . . . . . Propulsion Burnouts . | . . . . . Robots Hopped . | . . . . . Cave-ins Triggered . | . . . . . Exploration Rate (%) 48 | 4 85 62 17 72 Regions Visited 4 Branch Regions 1 Pre-discovered Areas . | . . . . . Known Exits Taken . | . . . . . Unknown Exits Taken 4 | 1 1 1 1 . Scrap Searched 1 | . . . 1 . Spaces Dug 8 | . . . . 8 Terrain Destroyed 250 | . . 61 . 189 Melee 8 | . . . . 8 Projectile 12 | . . . . 12 AOE 230 | . . 61 . 169 Terrain Rammed . | . . . . . Walls Destroyed . | . . . . . Machines Disabled . | . . . . . Actions | -11 -10 -9 -9 -8 --------- Run | Yrd Mat Mat Min Mat Total 4441 | 70 887 1708 74 1702 Wait 192 | . 43 37 40 72 Move 3583 | 58 738 1439 34 1314 Hop . | . . . . . Pick Up 77 | 4 19 19 . 35 Fast Attach 26 | 6 3 3 . 14 Attach 29 | . 1 5 . 23 Detach 4 | . . . . 4 Swap 45 | . 4 23 . 18 Drop 57 | . 6 20 . 31 Fire 418 | 2 73 162 . 181 Melee 8 | . . . . 8 Ram . | . . . . . Kick . | . . . . . Crush 2 | . . . . 2 Escape Stasis . | . . . . . Rewire . | . . . . . Trap . | . . . . . Miscellaneous . | . . . . . Route ------- -11/Scrapyard -10/Materials (discovered 4 exits: *Mat x2 / *Min x2) -9/Materials (discovered 2 exits: *Mat / [*Min]) -9/Mines -8/Materials (discovered 3 exits: *Fac x3) History --------- Turn | Location | Event 4 | -11/Scrapyard | Discovered new exit (range 16) 110 | -11/Scrapyard | Entered Materials 307 | -10/Materials | Build established: Mutant 700 | -10/Materials | Identified exit to Mines 1230 | -10/Materials | Discovered new exit (range 16) 1665 | -10/Materials | Repaired Lgt. Treads 2591 | -10/Materials | Discovered new exit (range 16) 2655 | -10/Materials | Entered another Materials area 2655 | -9/Materials | Evolved 2 slots: Utility x2 4673 | -9/Materials | Build established: Scavenger-Mutant 5242 | -9/Materials | Build established: Mutant 7260 | -9/Materials | Discovered new exit (range 4) 8351 | -9/Materials | Discovered new exit (range 11) 8469 | -9/Materials | Entered Mines 8476 | -9/Mines | Assisted by bots powering up and referring to "LRC-V3" 8577 | -9/Mines | Discovered new exit (range 5) 8618 | -9/Mines | Entered Materials 8618 | -8/Materials | Accompanied by 3 allies 8618 | -8/Materials | Evolved 2 slots: Utility x1, Weapon x1 8817 | -8/Materials | Lost 3 allies 8859 | -8/Materials | Garrison activated, responded to threat 8904 | -8/Materials | Lost 3 parts (1n1u1w) 8941 | -8/Materials | Lost 3 parts (1p1u1w) 9444 | -8/Materials | Repaired Lgt. Cannon 9741 | -8/Materials | Build established: Skirmisher 9988 | -8/Materials | Discovered new exit (range 15) 10094 | -8/Materials | Identified exit to Factory 11041 | -8/Materials | Core integrity fell below 50% 11079 | -8/Materials | Lost 3 parts (1u2w) 11470 | -8/Materials | Build established: Gunner 12112 | -8/Materials | Build established: Skirmisher 12248 | -8/Materials | Destroyed 8 combat bots 12297 | -8/Materials | Lost 11 parts (2p2n3u4w) 12572 | -8/Materials | Build established: Mutant 12767 | -8/Materials | Core integrity fell below 20% 12770 | -8/Materials | Destroyed by G-47 Trooper with Particle Gun Last Messages --------------- Retrieving 10 components... Aluminum Leg Imp. Heat Sink Lgt. Treads Imp. Heat Sink Heat Sink Imp. Heat Sink Com. Wheel Heat Sink Aluminum Leg Lgt. Treads System corrupted: Heat flow error (+248). Weapon Cycler destroyed. L-31 Rogue destroyed. Critical hit (Burn: +37). Overheating: Energy bleed (-31). Overheating: Energy bleed (-26). U-05 Engineer builds a Wall. Overheating: Core damaged (-88). [Achievement: Just Browsing] Map ----- +----------------------------------------------------+ | ???????????????????????????????# #??????# # | | ??????????????????############## #??????# # " | | ?????????########## ! #??????# + "" | | ?????????# # #??##### # "" | | ?????????# # """ "" ##?# ! # "" | | ?????????# # """ ! [ Y" #?# # " | | ?????????# [ # """ ! [ "" #?# # | | ?????????# + """ ] #?# #### | | ?????????# ] # ] #?# #??? | | ?????????# # #?#!! #### | | ?????????# #####"######"###""#?##### | | ?????????# #???###????###?####?????# | | ????????#"#"####"#"#??????????????????????# | | ????????#####??#####??????????????????????#######+ | | ?????????????????????########?????????????????# | | ?????????????????????# #?????????????????# | | ?????????????????????# """ #?????????????????# | | ?????????????????????#!"Y" #?????????????????# | | ?????????????????????#!=!= #?????????????????# | | ?????????????????????#!=== #?????????????????# | | ?????????????????????#|! #?????????????????# | | ?????????????????????####+##### #?????????????# | | ??????????????########### #?????????????# | | ??????????????# """T""" # #####?????????????#### | | ??????????????# # ##### #???????????? | | ?????????????## / /@!g T #???????????? | | ?????????????#;= ! % ] /%;# ## #???????????? | | ?????????????### ########g### ##??? #?????????? | | ??????????????# # u # #???????!#?????????? | | ??????????????## # """ # ###????????????????? | | ???????????????## """ # #???????????##+##? | | ????????????????## ! """ u #???????????# #? | | ????????????????## ! ! u # #???????????# +? | | ????????????????# !! # ##########??# #? | | ????????????????### ! # # / #??# #? | | ??????????????????# "T" # # #??# #? | | ??????????????????########### # #??# #? | | ????????????????????????????# # #??# ## | | ????????????????????????????# # #### | | ????????????????????????????# # + | | ????????????????????????????# + #### | | ???????????????????????????## # #??###### | | ??????????????????????????## #???????? | | ??????????????? ######## ########???????? | | ?????????????? ##### ##### | | ???????????????????######## | | ??????????????????????????# | | ?????????????????????????# == | | ?????????????????????????# ###### ##### | | ?????????????????????????# ## #????###+##????? | +----------------------------------------------------+ Best States ------------- Heat Dissipation 31 Energy Generation 14 Energy Capacity 280 Matter Stores 500 Matter Capacity 500 Sight Range 16 Robot Scan Range 15 Terrain Scan Density 10 Armor Coverage 225 Weapon Cycling 30 Evasion (%) 40 Recoil Reduction 2 Authchip Count 2 Item Schematics ----------------- Hacking Suite | -9/Materials | Scanalyzed Adv. EMP Blaster | -8/Materials | Scanalyzed Robot Schematics ------------------ None Fabricated ------------ Nothing Alien Tech Used ----------------- None Achievements -------------- I Spy Just Browsing Challenges ------------ None Game ------ Seed CloakAccelerationGreatsword Manual? 0 Play Time 00:57:09 Cumulative 36.6 hours Start 2025.04.01 @ 07:37:52 End 2025.04.01 @ 08:34:44 Sessions 1 Manual Loads 0 Difficulty Rogue Special Mode None Game No. 108 Rogue 108 Adventurer 0 Explorer 0 Win Type - Total 0 Types 0/0/0/0/0/0/0/0/0 Lore% 16 Gallery% 25 Achievement% 26 Wizard Run 0 Options --------- Layout 1 ASCII 0 Keyboard 0 Movement Mouse Keybinds 0 Fullscreen 1 Font 36/Smallcaps Map View 50x40 Zoom Use 0% Tactical HUD 0 Map Filters NONE Filters NONE Steam 1 RUN: 74bd51c1-b4e6-4c2c-b65c-f0087301e5cf